Cogmind - Beta 13 @@@ ROGUE MODE // 2024.06.19 @ 12:48:19 Player: MarKhan Result: Destroyed by Y-45 Defender with Heavy Assault Rifle Performance ------------- Evolutions (0) 0 Regions Visited (2) 400 Robots Destroyed (24) 120 Value Destroyed (569) 569 Prototype IDs (2) 40 Alien Tech Used (0) 0 Bonus (0) 0 TOTAL SCORE: 1129 Bonus ------- None Cogmind --------- Core Integrity 0/250 Matter 210/300 Energy 99/100 System Corruption 3% Temperature Cool (9) Movement Core (450) Ox8 Location -10/Subcaves Parts ------- > --- POWER (1) -------- (None) > --- PROPULSION (2) --- (None) > --- UTILITY (2) ------ Large Storage Unit Power Shielding > --- WEAPON (2) ------- Hammer Mining Claw > --- INVENTORY (15) --- Light Ion Engine Improved Heat Sink Huge Storage Unit Medium Battery (150) High-capacity Matter Pod (200) Improved Terrain Scanner Seismic Detector Targeting Computer Power Shielding Medium Laser Light Assault Rifle Mining Laser Welding Torch Peak State ------------ > --- POWER ------------ Light Nuclear Core > --- PROPULSION ------- Light Treads Light Treads > --- UTILITY ---------- Large Storage Unit Power Shielding > --- WEAPON ----------- Assault Rifle Assault Rifle > --- INVENTORY -------- Light Ion Engine Wheel Improved Heat Sink Large Storage Unit Improved Terrain Scanner Seismic Detector Medium Laser Mining Laser Mining Claw [Rating: 10] Favorites ----------- Power Ion Engine Engine Ion Engine Power Core Light Nuclear Core Propulsion Light Treads Treads Light Treads Wheel Wheel Utility Power Shielding Device Seismic Detector Storage Large Storage Unit Protection Power Shielding Weapon Assault Rifle Energy Gun Medium Laser Ballistic Gun Assault Rifle Special Weapon Mining Laser Impact Weapon Hammer Slashing Weapon Mining Claw Build | -11 -10 -10 ------- Run | Yrd Mat Sub Slots Evolved . | . . . Power . | . . . Propulsion . | . . . Utility . | . . . Weapon . | . . . Parts Attached 33 | 9 19 5 Power 4 | 1 2 1 Engine 3 | 1 1 1 Core 1 | . 1 . Reactor . | . . . Propulsion 6 | 2 4 . Treads 5 | 2 3 . Leg . | . . . Wheel 1 | . 1 . Hover . | . . . Flight . | . . . Utility 6 | 2 4 . Device 1 | 1 . . Storage 2 | 1 1 . Processor . | . . . Hackware . | . . . Protection 3 | . 3 . Artifact . | . . . Weapon 17 | 4 9 4 Energy Gun 4 | 2 1 1 Energy Cannon . | . . . Ballistic Gun 7 | 2 4 1 Ballistic Cannon . | . . . Launcher . | . . . Special Weapon 4 | . 4 . Impact Weapon 1 | . . 1 Slashing Weapon 1 | . . 1 Piercing Weapon . | . . . Special Melee Weapon . | . . . Unidentified Prototypes . | . . . Parts Lost 10 | . 5 5 Power 3 | . 1 2 Propulsion 4 | . 2 2 Utility . | . . . Weapon 3 | . 2 1 Highest Loss Streak 4 | . 2 4 To Critical Strikes . | . . . Average Slot Usage (%) 96 | . 96 90 Engine 10 | . 10 14 Core 3 | . 3 . Treads 18 | . 19 13 Wheel 6 | . 5 11 Device 1 | . 1 . Storage 14 | . 14 14 Protection 12 | . 12 14 Energy Gun 2 | . 1 9 Ballistic Gun 11 | . 12 6 Special Weapon 13 | . 13 2 Naked Turns . | . . . Heaviest Build 30 | 15 30 30 Greatest Support 40 | 40 40 20 Greatest Overweight (x) 9 | . 2 9 Average Overweight (x) . | . . 2 Largest Inventory Capacity 15 | 8 15 15 Average Capacity 13 | 7 13 15 Most Carried 15 | 8 15 15 Average Carried 12 | 5 13 14 Final Capacity 15 | 8 15 15 Final Carried 15 | 8 15 13 Class Distribution -------------------- 100% | Mutant Dominant Class ---------------- Mutant | -10/Materials Mutant | -10/Subcaves Resources | -11 -10 -10 ----------- Run | Yrd Mat Sub Matter Collected 929 | 299 586 44 Remotely . | . . . Salvage Created 604 | 96 434 74 Parts 44 | 7 28 9 Haulers Intercepted 1 | . 1 . Recyclers Shooed 1 | 1 . . Parts Field Recycled . | . . . Retrieved Matter . | . . . Parts Self-Destructed 8 | . . 8 Prevented . | . . . Kills | -11 -10 -10 ------- Run | Yrd Mat Sub Combat Hostiles Destroyed 18 | . 13 5 Melee 1 | . . 1 Guns 13 | . 9 4 Cannons 4 | . 4 . Classes Destroyed 7 | 2 5 . Builder 1 | . 1 . Tunneler 2 | 1 1 . Hauler 1 | . 1 . Recycler 1 | 1 . . Operator 1 | . 1 . Swarmer 8 | . 3 5 Grunt 10 | . 10 . Best Kill Streak 4 | 2 4 4 Combat Bots Only 4 | . 4 4 Max Kills in Single Turn 1 | 1 1 1 Gunslinging . | . . . Exploded . | . . . Melee 1 | . . 1 Uniques/NPCs Destroyed . | . . . Combat | -11 -10 -10 -------- Run | Yrd Mat Sub Hostile Shots Fired 182 | . 86 96 Missed 47 | . 19 28 Damage Taken 1421 | 40 833 548 Core 259 | . 156 103 Absorbed by Shields . | . . . Redirected to Shielding 45 | . 19 26 Regen/Repaired (Parts) 108 | . 108 . Core Remaining (%) 100 | 100 . . Volleys Fired 160 | 3 140 17 Largest 2 | 2 2 2 Hottest 200 | 60 200 70 Shots Fired 261 | 6 233 22 Gun 106 | 6 78 22 Cannon . | . . . Launcher . | . . . Special 155 | . 155 . Kinetic 91 | 3 72 16 Thermal 167 | . 161 6 Explosive . | . . . Electromagnetic 3 | 3 . . Robot Hit Streak 13 | 5 13 5 Robot Miss Streak 6 | . 6 3 Penetration Max . | . . . Secondary Targets 2 | . 2 . Max Gunslinging Chain 1 | . 1 . Shots Hit Robots 94 | 5 72 17 Core Hits 42 | 2 33 7 Critical Kills . | . . . Critical Parts Destroyed . | . . . Critical Strikes . | . . . Melee Attacks 8 | . . 8 Impact 1 | . . 1 Slashing 7 | . . 7 Piercing . | . . . Sneak Attacks . | . . . Combat Hostiles . | . . . Follow-up Attacks 1 | . . 1 Damage Inflicted 1459 | 75 1134 250 Guns 905 | 49 694 162 Cannons . | . . . Explosions 122 | 26 96 . Melee 88 | . . 88 Ramming 19 | . 19 . Kinetic 807 | 11 646 150 Thermal 507 | 26 469 12 Explosive . | . . . Electromagnetic 38 | 38 . . Impact 18 | . . 18 Slashing 70 | . . 70 Piercing . | . . . Highest Corruption 3 | . 3 3 Average Corruption 2 | . 2 3 Corruption Purged . | . . . Corruption Blocked . | . . . Effects 30 | . 28 2 Message Errors 9 | . 9 . Matter Fused 7 | . 7 . Heat Flow Errors 5 | . 5 . Energy Discharges 5 | . 4 1 Data Loss (minor) 1 | . 1 . Data Loss (major) 1 | . 1 . Misfires 1 | . 1 . Weapon Failures 1 | . . 1 Overload Shots . | . . . Overflow Damage 18 | . 18 . Projectiles 12 | . 12 . Explosions 6 | . 6 . Melee . | . . . Knockbacks . | . . . Impact . | . . . Kinetic . | . . . Secondary . | . . . Self-Inflicted Damage 154 | 40 114 . Shots 2 | 1 1 . Rammed 4 | . 4 . Targets Rammed 4 | . 4 . Kicked . | . . . Crushed . | . . . Highest Temperature 311 | 12 311 . Average Temperature 73 | 12 73 . Received Heat Transfer 531 | . 318 213 Effects 1 | . 1 . Matter Decay 1 | . 1 . Siege Activations . | . . . Robots Corrupted . | . . . Combat Hostiles . | . . . Parts Fried . | . . . Impact Corruptions . | . . . Robots Melted . | . . . Combat Hostiles . | . . . Parts Melted . | . . . Heat Transferred 1060 | 50 973 37 Parts Sabotaged . | . . . Parts Stolen . | . . . Parts Stripped . | . . . Power Chain Reactions 1 | 1 . . Alert | -11 -10 -10 ------- Run | Yrd Mat Sub Peak Influence 181 | 10 181 . Initial 6 | . 6 . Average 59 | 3 62 . Maximum Alert Level . | . . . Low Security (%) 100 | 100 100 . Level 1 . | . . . Level 2 . | . . . Level 3 . | . . . Level 4 . | . . . Level 5 . | . . . High Security . | . . . Max Security . | . . . Squads Dispatched 2 | . 2 . Investigation 1 | . 1 . Extermination . | . . . Reinforcement 1 | . 1 . Assault . | . . . Garrison . | . . . Intercept . | . . . Searches Triggered . | . . . Construction Impeded . | . . . Haulers Reinforced . | . . . Active Scanning Responses . | . . . Cargo Convoy Interrupts . | . . . Stealth | -11 -10 -10 --------- Run | Yrd Mat Sub Distress Signals . | . . . Communications Jammed . | . . . Distress Signals . | . . . Times Spotted 61 | . 29 32 Peak Tracking Total 5 | . 5 4 Tactical Retreats 4 | . . 4 Traps | -11 -10 -10 ------- Run | Yrd Mat Sub Traps Triggered 3 | . 3 . Indirectly . | . . . Trap Hack Attempts . | . . . Triggered . | . . . Disarmed . | . . . Reprogrammed . | . . . Reused . | . . . Traps Extracted . | . . . Installed . | . . . Triggered . | . . . Machines | -11 -10 -10 ---------- Run | Yrd Mat Sub Machines Disabled 8 | . 8 . Max in Single Turn 2 | . 2 . Machines Repaired . | . . . Machines Dismantled . | . . . Machines Sabotaged . | . . . Overloaded Fab Kills . | . . . Hacking | -11 -10 -10 --------- Run | Yrd Mat Sub Machines Accessed 10 | . 10 . Terminals 7 | . 7 . Fabricators . | . . . Repair Stations 1 | . 1 . Recycling Units 2 | . 2 . Scanalyzers . | . . . Garrison Access . | . . . Total Hacks 45 | . 45 . Successful 28 | . 28 . Failed 17 | . 17 . Catastrophic 1 | . 1 . Database Lockouts . | . . . Manual 21 | . 21 . Terminals 34 | . 34 . Fabricators . | . . . Repair Stations 6 | . 6 . Recycling Units 5 | . 5 . Scanalyzers . | . . . Garrison Access . | . . . Terminal Hacks 15 | . 15 . Part Schematic 2 | . 2 . Prototype ID Bank 1 | . 1 . Terminal Index 1 | . 1 . Alert Level 2 | . 2 . Locate Traps 1 | . 1 . Dispatch Records 1 | . 1 . Maintenance Status 2 | . 2 . Hauler Manifests 1 | . 1 . Zone Layout 4 | . 4 . Fabricator Hacks . | . . . Repair Station Hacks 4 | . 4 . Scan Component 2 | . 2 . Repair 2 | . 2 . Recycling Unit Hacks 1 | . 1 . Report Inventory 1 | . 1 . Scanalyzer . | . . . Garrison Access Hacks . | . . . Unauthorized Hacks 8 | . 8 . Terminals 6 | . 6 . Botnet 6 | . 6 . Fabricators . | . . . Repair Stations 1 | . 1 . Mechanics 1 | . 1 . Recycling Units 1 | . 1 . Monitor 1 | . 1 . Scanalyzers . | . . . Garrison Access . | . . . Data Cores Recovered . | . . . Used . | . . . Hacking Detections 9 | . 9 . Full Trace Events 7 | . 7 . Feedback Events 1 | . 1 . Corruption 1 | . 1 . Feedback Blocked . | . . . Robot Schematics Acquired . | . . . Robots Built . | . . . Authchips . | . . . Time . | . . . Total Robot Build Rating . | . . . Part Schematics Acquired 2 | . 2 . Parts Built . | . . . Authchips . | . . . Time . | . . . Total Part Build Rating . | . . . Parts Repaired 2 | . 2 . Time 52 | . 52 . Parts Recycled . | . . . Recycled Matter . | . . . Retrieved Matter . | . . . Retrieved Components . | . . . Parts Scanalyzed . | . . . Part Schematics Acquired . | . . . Parts Damaged . | . . . Bothacking | -11 -10 -10 ------------ Run | Yrd Mat Sub Used RIF Installer . | . . . Robots Hacked . | . . . Non-combat . | . . . Combat . | . . . Robot Hacks Applied . | . . . Relay Couplers Released . | . . . Fabnet Peak Effective % . | . . . Robots Rewired . | . . . Allies Hacked . | . . . Hacks Repelled . | . . . Allies | -11 -10 -10 -------- Run | Yrd Mat Sub Total Allies . | . . . Largest Group . | . . . Highest-Rated Group . | . . . Highest-Rated Ally . | . . . Total Orders . | . . . Ally Attacks . | . . . Total Damage . | . . . Kills . | . . . Allies Corrupted . | . . . Allies Melted . | . . . Intel | -11 -10 -10 ------- Run | Yrd Mat Sub Robot Analysis Total . | . . . Derelict Logs Recovered 1 | . . 1 Drone Launches . | . . . Drone Recoveries . | . . . Exploration | -11 -10 -10 ------------- Run | Yrd Mat Sub Turns Passed 2705 | 151 2408 146 Spaces Moved 1238 | 78 1093 67 Core 6 | 4 . 2 Treads 703 | 74 628 1 Legs . | . . . Wheels 529 | . 465 64 Hover . | . . . Flight . | . . . Fastest Speed 50 | 50 110 110 Average Speed 140 | 154 140 122 Slowest Speed 500 | 160 240 500 Overloaded Moves . | . . . Propulsion Burnouts . | . . . Robots Hopped . | . . . Cave-ins Triggered . | . . . Exploration Rate (%) 36 | 5 99 5 Regions Visited 2 Branch Regions 1 Pre-discovered Areas . | . . . Known Exits Taken . | . . . Unknown Exits Taken 2 | 1 1 . Scrap Searched . | . . . Spaces Dug 5 | . 5 . Terrain Destroyed 27 | . 27 . Melee . | . . . Projectile 18 | . 18 . AOE 9 | . 9 . Terrain Rammed . | . . . Walls Destroyed . | . . . Machines Disabled . | . . . Actions | -11 -10 -10 --------- Run | Yrd Mat Sub Total 1720 | 103 1521 96 Wait 232 | . 232 . Move 1236 | 77 1092 67 Hop . | . . . Pick Up 30 | 9 21 . Fast Attach 11 | 8 3 . Attach 7 | . 5 2 Detach 2 | 2 . . Swap 15 | 1 11 3 Drop 16 | 3 13 . Fire 160 | 3 140 17 Melee 7 | . . 7 Ram . | . . . Kick . | . . . Crush 4 | . 4 . Escape Stasis . | . . . Rewire . | . . . Trap . | . . . Miscellaneous . | . . . Route ------- -11/Scrapyard -10/Materials (discovered 5 exits: [*Mat x3] / [*Min] / [*Sub]) -10/Subcaves (discovered 1 exit: [*Rec]) History --------- Turn | Location | Event 50 | -11/Scrapyard | Discovered new exit (range 15) 152 | -11/Scrapyard | Entered Materials 344 | -10/Materials | Build established: Mutant 501 | -10/Materials | Discovered new exit (range 12) 679 | -10/Materials | Discovered new exit (range 3) 1002 | -10/Materials | Core integrity fell below 50% 1252 | -10/Materials | Discovered new exit (range 11) 1736 | -10/Materials | Repaired Lgt. Treads 1791 | -10/Materials | Repaired Seismic Detector 2310 | -10/Materials | Discovered new exit (range 15) 2551 | -10/Materials | Discovered new exit (range 6) 2560 | -10/Materials | Entered Subcaves 2564 | -10/Subcaves | Learned Materials trap positions 2626 | -10/Subcaves | Core integrity fell below 20% 2641 | -10/Subcaves | Discovered new exit (range 11) 2706 | -10/Subcaves | Destroyed by Y-45 Defender with Heavy Assault Rifle Last Messages --------------- 02603_ Acquired 29 matter. 02606_ Lgt. Assault Rifle fries itself beyond repair. 02609_ Lgt. Ion Engine fries itself beyond repair. 02610_ Lgt. Assault Rifle fries itself beyond repair. 02611_ Flight Unit fries itself beyond repair. 02624_ System corrupted: Assault Rifle jammed. 02627_ Assault Rifle destroyed. 02629_ Acquired 15 matter. 02641_ EXIT=FOUND 02679_ Wheel destroyed. 02680_ Ion Engine destroyed. 02688_ S-10 Pest destroyed. 02692_ Lgt. Treads destroyed. 02695_ System corrupted: Energy discharge (-33). 02698_ Hammer follow-up attack on S-10 Pest. 02698_ S-10 Pest destroyed. 02702_ Lgt. Ion Engine destroyed. Map ----- +----------------------------------------------------+ | ?????????????????????????????????????????? ##????? | | ????????????????????????????????????????## ?????? | | ???????????????????????????????????????## #??????? | | ????????????????????????????????######## ##??????? | | ???????????????????????????????## ## ##???????? | | ????????????????????????????#### ##????????? | | ???????????????????????????## % ###??????? | | ??????????????????????????## # ##?????? | | ?????????????????????????## # #?????? | | ?????????????????????????# ##?????? | | ????????????????????????## #### #??????? | | ???????????????????????## #??## # # #?????? | | ???????????????????????# ####???##### ## ?????? | | ???????????????????????# ###????????# #? ????? | | ??????????????????????## #????????# ?? ???? | | ?????????????????????## #????????# ?###??? | | ?????????????????????# #???????? ?????? | | ?????????????????????# ###???????? ????? | | ?????????????????????# ##?????????? ???? | | ?????????????????????# ##??????????? "#??? | | ?????????????????????## #???????????? " " "#??? | | ??????????????????????# #??????#?????"" """"#??? | | ??????????????????????# #????? #????###<#####??? | | ??????????????????????# #??? #???????##??????? | | ??????????????????????## Y#?? ##??????????????? | | ???????????????????????#[@## #??????????????? | | ????????????????????####% #??????????????? | | ?????????????????#### % ## #??????????????? | | ????????????????# #?? #??????????????? | | ???????????????# #??? ##??????????????? | | ???????????????# ???? ##???????????????? | | ???????????????# ????#????????????????? | | ???????????????## # # ????????????????????? | | ????????????????# #### ????????????????????? | | ??????????????? ???? ???????????????????? | | ????????????? ????? ??????????????????? | | ?????????????##### ????? #?????????????????? | | ?????????????????### ????? #?????????????????? | | ???????????????????# ??????? #?????????????????? | | ???????????????????###??????? #?????????????????? | | ?????????????????????????????? #?????????????????? | | ?????????????????????????????? ?????????????????? | | ?????????????????????????????????????????????????? | | ?????????????????????????????????????????????????? | | ?????????????????????????????????????????????????? | | ?????????????????????????????????????????????????? | | ?????????????????????????????????????????????????? | | ?????????????????????????????????????????????????? | | ?????????????????????????????????????????????????? | | ?????????????????????????????????????????????????? | +----------------------------------------------------+ Best States ------------- Heat Dissipation 25 Energy Generation 14 Energy Capacity 250 Matter Stores 300 Matter Capacity 300 Sight Range 16 Terrain Scan Density 10 Power Shielding 33 Evasion (%) 40 Recoil Reduction 2 Item Schematics ----------------- Lgt. Treads | -10/Materials | Hacked Utility Shielding | -10/Materials | Hacked Robot Schematics ------------------ None Fabricated ------------ Nothing Alien Tech Used ----------------- None Achievements -------------- None Challenges ------------ None Game ------ Seed SubatomicGravitonSplitter Manual? 0 Play Time 00:26:01 Cumulative 46.9 hours Start 2024.06.19 @ 12:23:37 End 2024.06.19 @ 12:48:19 Sessions 1 Manual Loads 0 Difficulty Rogue Special Mode None Game No. 43 Rogue 43 Adventurer 0 Explorer 0 Win Type - Total 2 Types 2/0/0/0/0/0/0/0/0 Lore% 35 Gallery% 38 Achievement% 35 Wizard Run 0 Options --------- Layout 1 ASCII 0 Keyboard 1 Movement Arrows Keybinds 0 Fullscreen 2 Font 24/Smallcaps Map View 50x35 Zoom Use 0% Tactical HUD 1 Map Filters NONE Filters NONE Steam 1 RUN: d5ebb01a-199d-4dc1-a95e-9865a708873b